bitfinex-derivatives/quotes_BTCF0:USTF0_20251130
["timestamp","ask_amount","ask_price","bid_price","bid_amount"]
[1764475090085,0.54666765,90957.0,90956.0,0.03604468]
[1764475090273,0.54666765,90957.0,90956.0,0.05824468]
[1764475092985,0.54666765,90957.0,90956.0,0.03604468]
[1764475093286,0.54666765,90957.0,90956.0,0.05824468]
[1764475094789,0.55651765,90957.0,90956.0,0.01493468]
[1764475118608,0.55651765,90957.0,90956.0,0.00016496]
[1764475118813,0.04491,90943.0,90942.0,0.04516]
[1764475119012,0.04491,90943.0,90942.0,0.05842]
[1764475119013,0.43491,90943.0,90942.0,0.05842]
[1764475119913,0.43491,90943.0,90942.0,0.05942]
[1764475120108,0.43491,90943.0,90942.0,0.07315821]
[1764475120412,0.43491,90943.0,90942.0,0.07415821]
[1764475121014,0.04491,90943.0,90942.0,0.07415821]
[1764475121210,0.19491,90943.0,90942.0,0.07315821]
[1764475121404,0.44491,90943.0,90942.0,0.07315821]
[1764475121605,0.44491,90943.0,90942.0,0.07215821]
[1764475121804,0.44491,90943.0,90942.0,0.07315821]
[1764475123413,0.44491,90943.0,90942.0,0.07415821]
[1764475126915,0.47110512,90943.0,90942.0,0.07415821]
[1764475128116,0.44491,90943.0,90942.0,0.07415821]
[1764475128315,0.47110409,90943.0,90942.0,0.07415821]
[1764475135628,0.47110409,90943.0,90942.0,0.06089821]
[1764475138419,0.44491,90943.0,90942.0,0.06089821]
[1764475140227,0.44491,90943.0,90942.0,0.01573821]
[1764475140633,0.44491,90943.0,90942.0,0.05969821]
[1764475144137,0.47152527,90943.0,90942.0,0.05969821]
[1764475146144,0.44491,90943.0,90942.0,0.05969821]
[1764475147241,0.47152901,90943.0,90942.0,0.05969821]
[1764475148341,0.14152901,90943.0,90942.0,0.07310821]
[1764475148542,0.11491,90943.0,90942.0,0.07310821]
[1764475148737,0.14153104,90943.0,90942.0,0.07310821]
[1764475153045,0.11987104,90943.0,90942.0,0.07310821]
[1764475153642,0.14297104,90943.0,90942.0,0.07310821]
[1764475158347,0.07297104,90943.0,90942.0,0.07310821]
[1764475158646,0.17554595,90952.0,90951.0,0.05749]
[1764475158843,0.29282675,90952.0,90951.0,0.05749]
[1764475159948,0.29282675,90952.0,90951.0,0.04437]
[1764475160339,0.29382675,90952.0,90951.0,0.04437]
[1764475171056,0.07382675,90952.0,90951.0,0.04437]
[1764475171260,0.02778675,90952.0,90951.0,0.04437]
[1764475171450,0.00116496,90952.0,90951.0,0.04437]
[1764475172161,0.00116496,90952.0,90951.0,0.45437]
[1764475173758,0.04483483,90966.0,90965.0,0.04493]
[1764475173961,0.1112582,90966.0,90965.0,0.04493]
[1764475174351,0.3612582,90966.0,90965.0,0.04493]
[1764475174753,0.3622582,90966.0,90965.0,0.04493]
[1764475175452,0.3662582,90966.0,90965.0,0.04493]
[1764475176165,0.33983483,90966.0,90965.0,0.04493]
[1764475177252,0.11983483,90966.0,90965.0,0.04493]
[1764475178369,0.14622173,90966.0,90965.0,0.04493]
[1764475179058,0.04983483,90966.0,90965.0,0.04493]
[1764475186665,0.04983483,90966.0,90965.0,0.0559215]
[1764475189167,0.04983483,90966.0,90965.0,0.04493]
[1764475197071,0.00527483,90966.0,90965.0,0.43493]
[1764475198874,0.02709483,90966.0,90965.0,0.43493]
[1764475199166,0.04875483,90966.0,90965.0,0.43493]
[1764475201570,0.02709483,90966.0,90965.0,0.43493]
[1764475202068,0.04875483,90966.0,90965.0,0.43493]
[1764475202974,0.04875483,90966.0,90965.0,0.04493]
[1764475203169,0.04875483,90966.0,90960.0,0.04605]
[1764475203170,0.0414189,90966.0,90960.0,0.04605]
[1764475203365,0.04348,90961.0,90960.0,0.22957]
[1764475204571,0.04348,90961.0,90960.0,0.23057]
[1764475204774,0.04348,90961.0,90960.0,0.23357]
[1764475206073,0.04348,90957.0,90942.0,0.02725821]
[1764475206275,0.04348,90943.0,90942.0,0.46330821]
[1764475207073,0.04348,90943.0,90942.0,0.46430821]
[1764475207272,0.04348,90943.0,90942.0,0.06578821]
[1764475207777,0.04348,90943.0,90942.0,0.01973821]
[1764475207778,0.0697587,90943.0,90942.0,0.01973821]
[1764475207979,0.0697587,90943.0,90942.0,0.01773821]
[1764475208173,0.04348,90943.0,90942.0,0.01873821]
[1764475208371,0.04348,90943.0,90942.0,0.06478821]
[1764475209572,0.04448,90943.0,90942.0,0.05978821]
[1764475210876,0.02282,90943.0,90942.0,0.44978821]
[1764475211378,0.04448,90943.0,90942.0,0.46078251]
[1764475212879,0.04348,90943.0,90942.0,0.46078251]
[1764475213178,0.04348,90943.0,90942.0,0.46178251]
[1764475213982,0.04348,90943.0,90942.0,0.46278251]
[1764475218483,0.02182,90943.0,90942.0,0.46278251]
[1764475219686,0.02182,90943.0,90942.0,0.47560251]
[1764475221479,0.04440496,90952.0,90951.0,0.05632]
[1764475221780,0.00016496,90952.0,90951.0,0.05632]
[1764475223086,0.00116496,90952.0,90951.0,0.05632]
[1764475223486,0.00016496,90952.0,90951.0,0.05632]
[1764475223683,0.00016496,90952.0,90951.0,0.05732]
[1764475223987,0.02145496,90952.0,90951.0,0.05732]
[1764475224988,0.02145496,90952.0,90951.0,0.05832]
[1764475225190,0.04365496,90952.0,90951.0,0.05832]
[1764475226384,0.04365496,90952.0,90951.0,0.05732]
[1764475226787,0.04365496,90952.0,90951.0,0.05832]
[1764475230783,0.04365496,90952.0,90951.0,0.05732]
[1764475230985,0.04365496,90952.0,90951.0,0.05832]
[1764475231689,0.04365496,90952.0,90951.0,0.05732]
[1764475239393,0.04365496,90952.0,90951.0,0.05632]
[1764475239593,0.04365496,90952.0,90951.0,0.05832]
[1764475240790,0.00016496,90952.0,90951.0,0.33832]
[1764475240998,0.26135408,90978.0,90965.0,0.04343]
[1764475240999,0.25151408,90978.0,90965.0,0.04343]
[1764475241384,0.04376483,90966.0,90965.0,0.04343]
[1764475242299,0.00327483,90966.0,90965.0,0.0544215]
[1764475242997,0.02129,90978.0,90977.0,0.04343]
[1764475243301,0.17174089,90990.0,90989.0,0.04325]
[1764475243490,0.4287627,90990.0,90989.0,0.02194]
[1764475243691,0.04303,90982.0,90981.0,0.05745]
[1764475243899,0.4593927,90982.0,90981.0,0.05745]
[1764475244096,0.4593927,90982.0,90981.0,0.04421]
[1764475244894,0.4593927,90982.0,90981.0,0.0229]
[1764475245198,0.4593927,90982.0,90980.0,0.00016485]
[1764475245199,0.04303,90981.0,90980.0,0.00016485]
[1764475245499,0.54377141,90981.0,90980.0,0.00016485]
[1764475246991,0.04303,90965.0,90964.0,0.0229]
[1764475247193,0.04303,90957.0,90956.0,0.05745]
[1764475248100,0.0431945,90966.0,90965.0,0.05745]
[1764475248289,0.41955237,90966.0,90965.0,0.04421]
[1764475248493,0.54506664,90966.0,90965.0,0.04421]
[1764475251600,0.54506664,90966.0,90965.0,0.0229]
[1764475252001,0.54606664,90966.0,90965.0,0.0229]
[1764475253707,0.54606664,90966.0,90965.0,0.04421]
[1764475255002,0.54506664,90966.0,90965.0,0.04421]
[1764475256606,0.54606664,90966.0,90965.0,0.04421]
[1764475260115,0.54506664,90966.0,90965.0,0.04421]
[1764475261008,0.04303,90953.0,90952.0,0.05745]
[1764475263407,0.04303,90953.0,90952.0,0.05945]
[1764475263908,0.39303,90953.0,90952.0,0.002]
[1764475264104,0.41959041,90953.0,90952.0,0.002]
[1764475264306,0.41959041,90953.0,90944.0,0.01324]
[1764475264307,0.04303,90948.0,90947.0,0.04437485]
[1764475266416,0.04303,90948.0,90947.0,0.04637485]
[1764475267016,0.04303,90948.0,90947.0,0.04737485]
[1764475268114,0.02192,90948.0,90947.0,0.04737485]
[1764475268512,0.04303,90948.0,90947.0,0.04737485]
[1764475269218,0.04303,90948.0,90947.0,0.04637485]
[1764475270013,0.04303,90948.0,90947.0,0.04537485]
[1764475270208,0.04303,90948.0,90947.0,0.04737485]
[1764475278223,0.06960361,90948.0,90947.0,0.04737485]
[1764475278525,0.04303,90948.0,90947.0,0.04737485]
[1764475279325,0.02192,90948.0,90947.0,0.04737485]
[1764475280022,0.04369,90948.0,90947.0,0.04737485]
[1764475282426,0.04369,90948.0,90947.0,0.04637485]
[1764475282629,0.04369,90948.0,90947.0,0.04537485]
[1764475282828,0.04369,90948.0,90947.0,0.04737485]
[1764475283222,0.04369,90948.0,90947.0,0.04637485]
[1764475288127,0.07027975,90948.0,90947.0,0.04637485]
[1764475290630,0.07027975,90948.0,90947.0,0.04437485]
[1764475290934,0.07027975,90948.0,90947.0,0.04637485]
[1764475291233,0.07027975,90948.0,90947.0,0.04437485]
[1764475302240,0.59157164,90948.0,90947.0,0.00016485]
[1764475302643,0.59157164,90948.0,90928.0,0.04466223]
[1764475302644,0.04477,90929.0,90928.0,0.04466223]
[1764475302839,0.04477,90929.0,90928.0,0.16466223]
[1764475303034,0.04477,90929.0,90928.0,0.06985848]
[1764475303240,0.04477,90929.0,90928.0,0.05724848]
[1764475303639,0.04477,90929.0,90928.0,0.05824848]
[1764475303845,0.04477,90929.0,90928.0,0.07115848]
[1764475304045,0.04477,90929.0,90928.0,0.07615848]
[1764475305546,0.04609495,90938.0,90937.0,0.04398]
[1764475305740,0.07272845,90938.0,90937.0,0.04398]
[1764475306941,0.02321,90929.0,90928.0,0.07460848]
[1764475307246,0.02321,90929.0,90928.0,0.06960848]
[1764475307642,0.04593,90929.0,90928.0,0.06960848]
[1764475308146,0.04593,90929.0,90928.0,0.07060848]
[1764475309247,0.04593,90929.0,90928.0,0.07560848]
[1764475312442,0.02337495,90938.0,90937.0,0.04398]
[1764475312643,0.04609495,90938.0,90937.0,0.04398]
[1764475312849,0.07270039,90938.0,90937.0,0.04398]
[1764475313641,0.07270039,90938.0,90937.0,0.04498]
[1764475313841,0.07270039,90938.0,90937.0,0.04798]
[1764475315656,0.19106585,90938.0,90937.0,0.004]
[1764475315846,0.19106585,90938.0,90937.0,0.0263]
[1764475318554,0.16446041,90938.0,90937.0,0.0263]
[1764475318955,0.16446041,90938.0,90937.0,0.004]
[1764475321153,0.19100769,90938.0,90937.0,0.004]
[1764475327954,0.19100769,90938.0,90937.0,0.04798]
[1764475328760,0.07264223,90938.0,90937.0,0.04798]
[1764475329159,0.04609495,90938.0,90937.0,0.04798]
[1764475329564,0.00016495,90938.0,90937.0,0.04798]
[1764475329756,0.04609495,90938.0,90937.0,0.04798]
[1764475329959,0.00016495,90938.0,90937.0,0.04798]
[1764475330562,0.17525523,90960.0,90959.0,0.04398]
[1764475330755,0.04593,90951.0,90950.0,0.04398]
[1764475330950,0.07249914,90951.0,90950.0,0.05689]
[1764475331172,0.02656914,90951.0,90950.0,0.05689]
[1764475331664,0.17541995,90960.0,90959.0,0.04398]
[1764475331859,0.07266357,90960.0,90959.0,0.0223]
[1764475332059,0.07266357,90960.0,90959.0,0.04398]
[1764475333067,0.07366357,90960.0,90959.0,0.04398]
[1764475334265,0.04709472,90960.0,90959.0,0.04398]
[1764475334769,0.00116472,90960.0,90959.0,0.04398]
[1764475334963,0.00016472,90960.0,90959.0,0.04498]
[1764475336069,0.00016472,90960.0,90959.0,0.04598]
[1764475336768,0.00016472,90960.0,90959.0,0.04698]
[1764475347873,0.02263472,90960.0,90959.0,0.04698]
[1764475348777,0.00016472,90960.0,90959.0,0.04698]
[1764475349975,0.00016472,90960.0,90959.0,0.04598]
[1764475361085,0.04442472,90960.0,90959.0,0.0243]
[1764475361282,0.04442472,90960.0,90959.0,0.04605]
[1764475362174,0.02665979,90960.0,90959.0,0.04605]
[1764475363387,0.07177979,90960.0,90959.0,0.04605]
[1764475368603,0.04528472,90960.0,90959.0,0.04605]
[1764475371701,0.00016472,90960.0,90959.0,0.0570423]
[1764475379808,0.00984,90992.0,90977.0,0.05376]
[1764475379809,0.04512,90978.0,90977.0,0.05376]
[1764475380010,0.07164261,90978.0,90977.0,0.04277]
[1764475381006,0.07364261,90978.0,90977.0,0.04277]
[1764475381906,0.02852261,90978.0,90977.0,0.04277]
[1764475382097,0.05072261,90978.0,90977.0,0.04277]
[1764475382302,0.07364261,90978.0,90977.0,0.04277]
[1764475383308,0.02852261,90978.0,90977.0,0.0537601]
[1764475384206,0.07364261,90978.0,90977.0,0.0537601]
[1764475387511,0.05072261,90978.0,90977.0,0.0537601]
[1764475388406,0.07364261,90978.0,90977.0,0.0537601]
[1764475389112,0.05072261,90978.0,90977.0,0.0537601]
[1764475389318,0.02852261,90978.0,90977.0,0.0537601]
[1764475390317,0.05072261,90978.0,90977.0,0.0537601]
[1764475390818,0.07364261,90978.0,90977.0,0.0537601]
[1764475391019,0.02852261,90978.0,90977.0,0.0537601]
[1764475391818,0.07364261,90978.0,90977.0,0.0537601]
[1764475395825,0.02852261,90978.0,90977.0,0.0537601]
[1764475396023,0.002,90978.0,90977.0,0.0537601]
[1764475396417,0.04616,90982.0,90981.0,0.0562095]
[1764475397826,0.04816,90982.0,90981.0,0.0562095]
[1764475398425,0.07464262,90982.0,90981.0,0.0562095]
[1764475407334,0.01881108,90982.0,90981.0,0.0562095]
[1764475407528,0.04470471,91006.0,91005.0,0.04448]
[1764475407928,0.16125327,91006.0,91005.0,0.04448]
[1764475408129,0.04443,90997.0,90996.0,0.05804485]
[1764475410634,0.04443,90997.0,90996.0,0.07010284]
[1764475410946,0.04543,90997.0,90996.0,0.07010284]
[1764475412341,0.04543,90997.0,90996.0,0.05670284]
[1764475416946,0.04543,90997.0,90996.0,0.01222284]
[1764475417546,0.04543,90997.0,90996.0,0.05670284]
[1764475417956,0.04543,90997.0,90996.0,0.03511284]
[1764475419058,0.04543,90997.0,90996.0,0.05670284]
[1764475419358,0.07142996,90997.0,90996.0,0.05670284]
[1764475420951,0.04998996,90997.0,90996.0,0.07010284]
[1764475421152,0.07142996,90997.0,90996.0,0.07010284]
[1764475421548,0.02699996,90997.0,90996.0,0.07010284]
[1764475421756,0.001,90997.0,90996.0,0.07010284]
[1764475422558,0.04470471,91006.0,91005.0,0.04448]
[1764475422755,0.07069974,91006.0,91005.0,0.04448]
[1764475423171,0.04470471,91006.0,91005.0,0.04448]
[1764475423357,0.02326471,91006.0,91005.0,0.04448]
[1764475423559,0.00027471,91006.0,91005.0,0.04448]
[1764475424858,0.00127471,91006.0,91005.0,0.04448]
[1764475426867,0.04336,91032.0,91031.0,0.04486]
[1764475427065,0.06934743,91032.0,91031.0,0.04486]
[1764475427268,0.18996991,91032.0,91031.0,0.04486]
[1764475427967,0.18996991,91032.0,91031.0,0.02259]
[1764475428168,0.04336,91023.0,91022.0,0.04502485]
[1764475428369,0.06934743,91023.0,91022.0,0.04502485]
[1764475429469,0.07034743,91023.0,91022.0,0.04502485]
[1764475430971,0.04802743,91023.0,91022.0,0.04502485]
[1764475431172,0.02698743,91023.0,91022.0,0.04502485]
[1764475432275,0.001,91023.0,91022.0,0.04502485]
[1764475433262,0.04436,91023.0,91022.0,0.04502485]
[1764475439472,0.04436,91023.0,91022.0,0.02275485]
[1764475439678,0.07029662,91023.0,91022.0,0.00016485]
[1764475440177,0.07029662,91023.0,91022.0,0.02275485]
[1764475440471,0.07029662,91023.0,91022.0,0.00016485]
[1764475441380,0.19720873,91023.0,91022.0,0.00016485]
[1764475443676,0.04336,91001.0,91000.0,0.05851]
[1764475444075,0.04336,90997.0,90996.0,0.03464799]
[1764475444285,0.04336,90997.0,90996.0,0.01205799]
[1764475444574,0.04336,90986.0,90985.0,0.05851]
[1764475445181,0.04336,90986.0,90985.0,0.07077524]
[1764475445482,0.17258222,91000.0,90999.0,0.04486]
[1764475445680,0.069307,91000.0,90999.0,0.04486]
[1764475445978,0.19509088,91000.0,90999.0,0.04486]
[1764475458484,0.16914388,91000.0,90999.0,0.04486]
[1764475460997,0.04552,90993.0,90992.0,0.05683]
[1764475462085,0.04552,90993.0,90992.0,0.05783]
[1764475462286,0.04552,90993.0,90992.0,0.04465]
[1764475462685,0.16338292,90993.0,90992.0,0.001]
[1764475463287,0.16338292,90993.0,90992.0,0.04465]
[1764475464000,0.16338292,90993.0,90992.0,0.05783]
[1764475464700,0.16338292,90993.0,90992.0,0.05683]
[1764475465894,0.04417,90986.0,90985.0,0.03369524]
[1764475466096,0.04417,90986.0,90985.0,0.05517524]
[1764475467796,0.04417,90986.0,90985.0,0.05717524]
[1764475470492,0.04417,90986.0,90985.0,0.05617524]
[1764475473301,0.07031618,90986.0,90985.0,0.05617524]
[1764475478501,0.04417,90986.0,90985.0,0.05617524]
[1764475485399,0.07032045,90986.0,90985.0,0.05617524]
[1764475490801,0.07032045,90986.0,90985.0,0.06716434]
[1764475491294,0.02615045,90986.0,90985.0,0.06716434]
[1764475491805,0.04919045,90986.0,90985.0,0.06716434]
[1764475492009,0.07154045,90986.0,90985.0,0.06716434]
[1764475494015,0.02615045,90986.0,90985.0,0.44716434]
[1764475494210,0.02320453,91006.0,91005.0,0.05789]
[1764475494403,0.00016453,91006.0,91005.0,0.05789]
[1764475494901,0.02320453,91006.0,91005.0,0.05789]
[1764475496103,0.02420453,91006.0,91005.0,0.05789]
[1764475497806,0.00116453,91006.0,91005.0,0.05789]
[1764475498917,0.02420453,91006.0,91005.0,0.05789]
[1764475501014,0.04655453,91006.0,91005.0,0.05789]
[1764475502007,0.16634026,91006.0,91005.0,0.02329]
[1764475502315,0.04539,91000.0,90999.0,0.04624]
[1764475502716,0.15977661,91000.0,90999.0,0.04624]
[1764475503618,0.52977661,91000.0,90999.0,0.02329]
[1764475503815,0.04539,90997.0,90996.0,0.04640485]
[1764475504013,0.43539,90997.0,90996.0,0.04640485]
[1764475504614,0.43539,90997.0,90996.0,0.02345485]
[1764475504814,0.43539,90997.0,90996.0,0.00016485]
[1764475506320,0.46126813,90997.0,90996.0,0.02345485]
[1764475506713,0.57836189,90997.0,90996.0,0.00016485]
[1764475508431,0.57836189,90997.0,90976.0,0.01382]
[1764475508432,0.04539,90977.0,90976.0,0.06006]
[1764475508714,0.45539,90977.0,90976.0,0.05820239]
[1764475509520,0.45539,90977.0,90976.0,0.06320239]
[1764475510116,0.57377,90977.0,90976.0,0.06320239]
[1764475510527,0.57377,90977.0,90976.0,0.04025239]
[1764475510818,0.57377,90977.0,90976.0,0.03725239]
[1764475511323,0.57377,90977.0,90976.0,0.05920239]
[1764475512821,0.57377,90977.0,90976.0,0.05820239]
[1764475514613,0.57377,90977.0,90976.0,0.01196239]
[1764475514810,0.04476,90971.0,90970.0,0.05894]
[1764475515321,0.04476,90971.0,90970.0,0.04512]
[1764475515322,0.41476,90971.0,90970.0,0.04512]
[1764475515527,0.41476,90971.0,90970.0,0.05703039]
[1764475515927,0.41476,90971.0,90970.0,0.05803039]
[1764475516127,0.53536347,90971.0,90970.0,0.05803039]
[1764475518725,0.53536347,90971.0,90970.0,0.01291039]
[1764475518930,0.53536347,90971.0,90970.0,0.05703039]
[1764475523133,0.16536347,90971.0,90970.0,0.05703039]
[1764475523628,0.16536347,90971.0,90970.0,0.05803039]
[1764475538337,0.19151793,90971.0,90970.0,0.05803039]
[1764475539539,0.19151793,90971.0,90970.0,0.05703039]
[1764475539739,0.19151793,90971.0,90970.0,0.05903039]
[1764475546758,0.19151793,90971.0,90970.0,0.05703039]
[1764475546958,0.19151793,90971.0,90970.0,0.05903039]
[1764475548260,0.19151793,90971.0,90970.0,0.05703039]
[1764475548560,0.19151793,90971.0,90970.0,0.05803039]
[1764475549060,0.19151793,90971.0,90970.0,0.01291039]
[1764475549458,0.19151793,90971.0,90970.0,0.05742039]
[1764475551552,0.02615446,90971.0,90970.0,0.05742039]
[1764475551751,0.17438469,90980.0,90979.0,0.04451]
[1764475551951,0.0712552,90980.0,90979.0,0.04451]
[1764475552152,0.19086831,90980.0,90979.0,0.04451]
[1764475553060,0.19086831,90980.0,90979.0,0.04551]
[1764475557564,0.0712552,90980.0,90979.0,0.04551]
[1764475563563,0.0712552,90980.0,90979.0,0.001]
[1764475563771,0.04509,90973.0,90972.0,0.0576]
[1764475564970,0.04509,90973.0,90972.0,0.0606]
[1764475567568,0.04509,90973.0,90972.0,0.0576]
[1764475567768,0.04509,90973.0,90972.0,0.0606]
[1764475569769,0.04509,90973.0,90972.0,0.0596]
[1764475573177,0.04509,90973.0,90972.0,0.0576]
[1764475573374,0.04509,90973.0,90972.0,0.0596]
[1764475576766,0.04509,90973.0,90972.0,0.0576]
[1764475576968,0.04509,90973.0,90972.0,0.0596]
[1764475578577,0.04509,90973.0,90972.0,0.0606]
[1764475578964,0.04509,90973.0,90972.0,0.0616]
[1764475581865,0.04509,90973.0,90972.0,0.0586]
[1764475582071,0.04509,90973.0,90972.0,0.0606]
[1764475582480,0.04509,90973.0,90972.0,0.0576]
[1764475582681,0.04509,90973.0,90972.0,0.0596]
[1764475584282,0.04509,90973.0,90972.0,0.04651]
[1764475585578,0.04509,90973.0,90972.0,0.04451]
[1764475585882,0.04509,90973.0,90972.0,0.04551]
[1764475587188,0.04509,90973.0,90972.0,0.05853]
[1764475588888,0.07123878,90973.0,90972.0,0.05853]
[1764475589385,0.07123878,90973.0,90972.0,0.05953]
[1764475590684,0.07123878,90973.0,90972.0,0.0705207]
[1764475590889,0.07123878,90973.0,90972.0,0.05953]
[1764475593084,0.02614878,90973.0,90972.0,0.05953]
[1764475593385,0.04305485,90986.0,90985.0,0.04415]
[1764475593691,0.19467608,90986.0,90985.0,0.04415]
[1764475596795,0.00016485,90986.0,90985.0,0.04415]
[1764475597784,0.17214344,91010.0,91009.0,0.04415]
[1764475598092,0.19529238,91010.0,91009.0,0.04415]
[1764475598898,0.19629238,91010.0,91009.0,0.04415]
[1764475602694,0.19629238,91010.0,91009.0,0.02308]
[1764475602890,0.04289,91001.0,91000.0,0.04431485]
[1764475603989,0.04389,91001.0,91000.0,0.04431485]
[1764475614801,0.04389,91001.0,91000.0,0.05530215]
[1764475620906,0.001,91001.0,91000.0,0.05530215]
[1764475621310,0.04543453,91019.0,91018.0,0.0436]
[1764475621505,0.07133796,91019.0,91018.0,0.0436]
[1764475621813,0.19033541,91019.0,91018.0,0.0436]
[1764475622510,0.19133541,91019.0,91018.0,0.0436]
[1764475626602,0.19033541,91019.0,91018.0,0.0436]
[1764475626798,0.19133541,91019.0,91018.0,0.0436]
[1764475633614,0.07233796,91019.0,91018.0,0.0436]
[1764475634719,0.07133796,91019.0,91018.0,0.0436]
[1764475635714,0.02606796,91019.0,91018.0,0.0436]
[1764475636215,0.04711796,91019.0,91018.0,0.0436]
[1764475637128,0.06973796,91019.0,91018.0,0.0436]
[1764475637825,0.04711796,91019.0,91018.0,0.0436]
[1764475638224,0.00016453,91019.0,91018.0,0.0436]
[1764475639722,0.02121453,91019.0,91018.0,0.0436]
[1764475640024,0.00016453,91019.0,91018.0,0.0436]
[1764475640524,0.04445453,91019.0,91018.0,0.0436]
[1764475641428,0.00016453,91019.0,91018.0,0.0436]
[1764475671557,0.04429453,91019.0,91018.0,0.0436]
[1764475672559,0.02157453,91019.0,91018.0,0.0436]
[1764475674162,0.04429453,91019.0,91018.0,0.0436]
[1764475678967,0.07015126,91019.0,91018.0,0.0436]
[1764475680960,0.07015126,91019.0,91018.0,0.02152]
[1764475681266,0.07015126,91019.0,91018.0,0.04369]
[1764475681961,0.07015126,91019.0,91014.0,0.0243255]
[1764475681962,0.04413,91012.0,91011.0,0.04368]
[1764475682167,0.06998673,91012.0,91011.0,0.04368]
[1764475682866,0.06998673,91012.0,91002.0,0.01276]
[1764475682867,0.04413,91003.0,91002.0,0.05644]
[1764475683667,0.02141,91003.0,91002.0,0.05644]
[1764475683864,0.17324946,91012.0,91011.0,0.04368]
[1764475684070,0.06992611,91012.0,91011.0,0.04368]
[1764475685367,0.04413,91006.0,91005.0,0.04368]
[1764475685671,0.06992611,91006.0,91005.0,0.04368]
[1764475686869,0.06992611,91006.0,91005.0,0.04568]
[1764475688868,0.04413,91006.0,91005.0,0.04568]
[1764475689870,0.04413,91006.0,91005.0,0.002]
[1764475690772,0.04413,91001.0,91000.0,0.04384485]
[1764475692975,0.04413,91001.0,91000.0,0.04584485]
[1764475693677,0.04413,91001.0,91000.0,0.04684485]
[1764475694181,0.04413,91001.0,91000.0,0.06084485]
[1764475696278,0.02141,91001.0,91000.0,0.06084485]
[1764475696870,0.17294946,91010.0,91009.0,0.04507]
[1764475697069,0.04383,91010.0,91009.0,0.04507]
[1764475697273,0.15822306,91010.0,91009.0,0.04507]
[1764475697778,0.04383,91001.0,91000.0,0.06223485]
[1764475698376,0.04383,91001.0,91000.0,0.06123485]
[1764475699072,0.04383,91001.0,91000.0,0.05923485]
[1764475699273,0.04383,91001.0,91000.0,0.06023485]
[1764475699677,0.04383,91001.0,91000.0,0.06223485]
[1764475707181,0.04383,91001.0,91000.0,0.04823485]
[1764475707386,0.04383,91001.0,91000.0,0.02614485]
[1764475708484,0.04383,91001.0,91000.0,0.04780485]
[1764475709381,0.04383,91001.0,91000.0,0.04680485]
[1764475709581,0.07007942,91001.0,91000.0,0.04680485]
[1764475709977,0.07007942,91001.0,91000.0,0.04580485]
[1764475710179,0.07007942,91001.0,91000.0,0.04680485]
[1764475722489,0.07007942,91001.0,91000.0,0.00216485]
[1764475723190,0.18601648,91001.0,91000.0,0.00216485]
[1764475723895,0.18601648,91001.0,91000.0,0.00116485]
[1764475725895,0.18601648,91001.0,91000.0,0.00016485]
[1764475727396,0.1860258,91001.0,91000.0,0.00016485]
[1764475733804,0.1860258,91001.0,91000.0,0.04378485]
[1764475734005,0.1860258,91001.0,91000.0,0.00016485]
[1764475734213,0.1860258,91001.0,91000.0,0.04378485]
[1764475740814,0.1421958,91001.0,91000.0,0.04378485]
[1764475741202,0.11593706,91001.0,91000.0,0.04378485]
[1764475742207,0.04510453,91019.0,91018.0,0.04362]
[1764475742515,0.19484976,91019.0,91018.0,0.04362]
[1764475742716,0.19484976,91019.0,91018.0,0.02136]
[1764475742916,0.04494,91009.0,91008.0,0.05683]
[1764475743118,0.07120276,91009.0,91008.0,0.05683]
[1764475743413,0.19746599,91009.0,91008.0,0.05683]
[1764475743919,0.02626276,91009.0,91008.0,0.05683]
[1764475744116,0.00016453,91019.0,91018.0,0.0546051]
[1764475744418,0.00116453,91019.0,91018.0,0.0546051]
[1764475745321,0.02304453,91019.0,91018.0,0.0546051]
[1764475745520,0.00116453,91019.0,91018.0,0.0546051]
[1764475746723,0.02304453,91019.0,91018.0,0.0546051]
[1764475747020,0.04610453,91019.0,91018.0,0.04362]
[1764475747208,0.04510453,91019.0,91018.0,0.04362]
[1764475747917,0.04510453,91019.0,91018.0,0.0546051]
[1764475753425,0.00016453,91019.0,91018.0,0.0546051]
[1764475753625,0.04474453,91019.0,91018.0,0.0546051]
[1764475758627,0.04474453,91019.0,91018.0,0.04362]
[1764475761127,0.04474453,91019.0,91011.0,0.01321]
[1764475761128,0.04408,91012.0,91011.0,0.04352]
[1764475761524,0.04408,91006.0,91005.0,0.04352]
[1764475762027,0.04408,91001.0,91000.0,0.02143485]
[1764475762422,0.16790891,91001.0,91000.0,0.04368485]
[1764475763122,0.16790891,91001.0,91000.0,0.04768485]
[1764475763824,0.16790891,91001.0,91000.0,0.04868485]
[1764475764222,0.16790891,91001.0,91000.0,0.02643485]
[1764475764530,0.16790891,91001.0,91000.0,0.04868485]
[1764475765728,0.16790891,91001.0,91000.0,0.04468485]
[1764475765930,0.16790891,91001.0,91000.0,0.04668485]
[1764475769627,0.16790891,91001.0,91000.0,0.00316485]
[1764475769822,0.19346227,91001.0,91000.0,0.00316485]
[1764475770830,0.19346227,91001.0,91000.0,0.00116485]
[1764475771625,0.19346227,91001.0,91000.0,0.00016485]
[1764475777136,0.19346227,91001.0,90984.0,0.05728]
[1764475777137,0.04408,90985.0,90984.0,0.05728]
[1764475778237,0.04408,90985.0,90984.0,0.05828]
[1764475778436,0.04408,90985.0,90984.0,0.06128]
[1764475779938,0.02105,90985.0,90984.0,0.06128]
[1764475781435,0.17345088,90994.0,90993.0,0.04352]
[1764475781738,0.16260431,90994.0,90993.0,0.04352]
[1764475782533,0.16260431,90994.0,90993.0,0.04452]
[1764475782930,0.00016485,90994.0,90993.0,0.04452]
[1764475784033,0.00016485,90994.0,90993.0,0.04552]
[1764475784440,0.00016485,90994.0,90993.0,0.04452]
[1764475784637,0.00016485,90994.0,90993.0,0.04752]
[1764475785044,0.00016485,90994.0,90993.0,0.04452]
[1764475785241,0.00016485,90994.0,90993.0,0.04852]
[1764475785440,0.02155485,90994.0,90993.0,0.04852]
[1764475785840,0.04455485,90994.0,90993.0,0.04852]
[1764475786742,0.04455485,90994.0,90993.0,0.02627]
[1764475786946,0.04455485,90994.0,90993.0,0.04954]
[1764475788144,0.04455485,90994.0,90993.0,0.04554]
[1764475788345,0.04455485,90994.0,90993.0,0.04754]
[1764475788546,0.04455485,90994.0,90993.0,0.04654]
[1764475788844,0.04455485,90994.0,90993.0,0.04754]
[1764475793148,0.07016977,90994.0,90993.0,0.04754]
[1764475800547,0.07016977,90994.0,90993.0,0.0585282]